fUSD/lending_fUSD_20250504
["ID","MTS","AMOUNT","RATE_DAILY","PERIOD"]
[359811947,1746358071134,-450.0,0.00019808,2]
[359811948,1746358071144,-450.0,0.00019808,2]
[359811949,1746358071154,-450.0,0.00019808,2]
[359811950,1746358071164,-313.47,0.00019808,2]
[359811951,1746358071176,-271.19,0.00019808,2]
[359811952,1746358071185,-178.81,0.00019808,2]
[359811953,1746358071196,-271.19,0.00019808,2]
[359811954,1746358071206,-178.81,0.00019808,2]
[359811955,1746358071224,-271.19,0.00019808,2]
[359811956,1746358071234,-178.81,0.00019808,2]
[359811957,1746358071246,-271.19,0.00019808,2]
[359811958,1746358071256,-178.81,0.00019808,2]
[359811959,1746358071267,-271.19,0.00019808,2]
[359811960,1746358071277,-178.81,0.00019808,2]
[359811961,1746358071289,-271.19,0.00019808,2]
[359811962,1746358071299,-178.81,0.00019808,2]
[359811963,1746358071311,-114.2,0.00019808,2]
[359811964,1746358071321,-450.0,0.00019808,2]
[359811965,1746358071331,-450.0,0.00019808,2]
[359811966,1746358071341,-450.0,0.00019808,2]
[359811967,1746358071350,-450.0,0.00019808,2]
[359811968,1746358071360,-450.0,0.00019808,2]
[359811969,1746358071371,-864.65,0.00019808,2]
[359811970,1746358071380,-450.0,0.00019808,2]
[359811971,1746358071390,-450.0,0.00019808,2]
[359811972,1746358071401,-450.0,0.00019808,2]
[359811973,1746358071622,-610.76,0.00019808,2]
[359811974,1746358071632,-450.0,0.00019808,2]
[359811975,1746358071641,-450.0,0.00019808,2]
[359811976,1746358071651,-450.0,0.00019808,2]
[359811977,1746358071661,-533.06392047,0.00019808,2]
[359811978,1746358071672,-450.0,0.00019808,2]
[359811979,1746358071681,-537.07,0.00019808,2]
[359811980,1746358071691,-450.0,0.00019808,2]
[359811981,1746358071702,-450.0,0.00019808,2]
[359811982,1746358071712,-450.0,0.00019808,2]
[359811983,1746358071722,-450.0,0.00019808,2]
[359811984,1746358071732,-203.20607953,0.00019808,2]
[359811985,1746358071744,-246.79392047,0.00019808,2]
[359811986,1746358071753,-203.20607953,0.00019808,2]
[359811987,1746358071765,-246.79392047,0.00019808,2]
[359811988,1746358071774,-203.20607953,0.00019808,2]
[359811989,1746358071786,-246.79392047,0.00019808,2]
[359811990,1746358071796,-203.20607953,0.00019808,2]
[359811991,1746358071808,-450.0,0.00019808,2]
[359811992,1746358071819,-74.54392047,0.00019808,2]
[359811993,1746358071829,-375.45607953,0.00019808,2]
[359811994,1746358071840,-74.54392047,0.00019808,2]
[359811995,1746358071849,-375.45607953,0.00019808,2]
[359811996,1746358071861,-74.54392047,0.00019808,2]
[359811997,1746358071870,-155.66607953,0.00019808,2]
[359811998,1746358071883,-294.33392047,0.00019808,2]
[359811999,1746358071893,-255.58607953,0.00019808,2]
[359812000,1746358071904,-194.41392047,0.00019808,2]
[359812001,1746358071913,-255.58607953,0.00019808,2]
[359812002,1746358071924,-194.41392047,0.00019808,2]
[359812003,1746358071934,-255.58607953,0.00019808,2]
[359812004,1746358071945,-187.07413052,0.00019808,2]
[359812005,1746358071955,-262.92586948,0.00019808,2]
[359812006,1746358071974,-450.0,0.00019726,2]
[359812007,1746358071985,-187.07413052,0.00019808,2]
[359812008,1746358071995,-450.0,0.00019808,2]
[359812009,1746358072005,-37.28586948,0.00019808,2]
[359812010,1746358072016,-450.0,0.00019808,2]
[359812011,1746358072027,-450.0,0.00019808,2]
[359812012,1746358072039,-450.0,0.00019808,2]
[359812013,1746358072050,-450.0,0.00019808,2]
[359812014,1746358072061,-426.04413052,0.00019808,2]
[359812015,1746358072071,-23.95586948,0.00019808,2]
[359812016,1746358072082,-426.04413052,0.00019808,2]
[359812017,1746358072092,-23.95586948,0.00019808,2]
[359812018,1746358072103,-450.0,0.00019808,2]
[359812019,1746358072115,-450.0,0.00019808,2]
[359812020,1746358072132,-450.0,0.00019753,2]
[359812021,1746358072144,-424.27413052,0.00019808,2]
[359812022,1746358072154,-450.0,0.00019808,2]
[359812023,1746358072164,-450.0,0.00019808,2]
[359812024,1746358072174,-644.29,0.00019808,2]
[359812025,1746358072184,-450.0,0.00019808,2]
[359812026,1746358072193,-450.0,0.00019808,2]
[359812027,1746358072203,-1310.44,0.00019808,2]
[359812028,1746358072213,-341.78605967,0.00019808,2]
[359812029,1746358072223,-494.34,0.00019808,2]
[359812030,1746358072232,-450.0,0.00019808,2]
[359812031,1746358072241,-450.0,0.00019808,2]
[359812032,1746358072251,-167.79980981,0.00019808,2]
[359812033,1746358072268,-450.0,0.0001978,2]
[359812034,1746358072277,-50.78,0.00019808,2]
[359812035,1746358072289,-231.42019019,0.00019808,2]
[359812036,1746358072299,-102.51980981,0.00019808,2]
[359812037,1746358072311,-450.0,0.00019808,2]
[359812038,1746358072322,-450.0,0.00019808,2]
[359812039,1746358072334,-450.0,0.00019808,2]
[359812040,1746358072345,-500.0,0.00019808,2]
[359812041,1746358072357,-428.62019019,0.00019808,2]
[359812042,1746358072366,-21.37980981,0.00019808,2]
[359812043,1746358072378,-428.62019019,0.00019808,2]
[359812044,1746358072387,-21.37980981,0.00019808,2]
[359812045,1746358072399,-694.80019019,0.00019808,2]
[359812046,1746358072408,-450.0,0.00019808,2]
[359812047,1746358072418,-76.68980981,0.00019808,2]
[359812048,1746358072429,-450.0,0.00019808,2]
[359812049,1746358072440,-226.42019019,0.00019808,2]
[359812050,1746358072450,-207.40794273,0.00019808,2]
[359812051,1746358072461,-230.08,0.00019808,2]
[359812052,1746358072495,-450.0,0.00019808,2]
[359812053,1746358072511,-86.16205727,0.00019808,2]
[359812054,1746358072520,-63.83794273,0.00019808,2]
[359812055,1746358072532,-450.0,0.00019808,2]
[359812056,1746358072543,-450.0,0.00019808,2]
[359812057,1746358072555,-1517.02205727,0.00019808,2]
[359812058,1746358072564,-450.0,0.00019808,2]
[359812059,1746358072574,-1253.09794273,0.00019808,2]
[359812060,1746358072591,-225.55557963,0.00019808,2]
[359812061,1746358072602,-330.10647764,0.00019808,2]
[359812062,1746358072611,-119.89352236,0.00019808,2]
[359812063,1746358072622,-330.10647764,0.00019808,2]
[359812064,1746358072631,-119.89352236,0.00019808,2]
[359812065,1746358072642,-660.83647764,0.00019808,2]
[359812066,1746358072652,-70.37352236,0.00019808,2]
[359812067,1746358072663,-379.62647764,0.00019808,2]
[359812068,1746358072672,-70.37352236,0.00019808,2]
[359812069,1746358072683,-379.62647764,0.00019808,2]
[359812070,1746358072692,-70.37352236,0.00019808,2]
[359812071,1746358072703,-450.0,0.00019808,2]
[359812072,1746358072714,-62.46647764,0.00019808,2]
[359812073,1746358072724,-387.53352236,0.00019808,2]
[359812074,1746358072735,-62.46647764,0.00019808,2]
[359812075,1746358072744,-387.53352236,0.00019808,2]
[359812076,1746358072756,-450.0,0.00019808,2]
[359812077,1746358072767,-88.12647764,0.00019808,2]
[359812078,1746358072776,-361.87352236,0.00019808,2]
[359812079,1746358072787,-88.12647764,0.00019808,2]
[359812080,1746358072797,-361.87352236,0.00019808,2]
[359812081,1746358072809,-88.12647764,0.00019808,2]
[359812082,1746358072818,-361.87352236,0.00019808,2]
[359812083,1746358072832,-88.12647764,0.00019808,2]
[359812084,1746358072841,-361.87352236,0.00019808,2]
[359812085,1746358072853,-450.0,0.00019808,2]
[359812086,1746358072864,-450.0,0.00019808,2]
[359812087,1746358072876,-450.0,0.00019808,2]
[359812088,1746358072891,-308.83647764,0.00019808,2]
[359812089,1746358072901,-141.16352236,0.00019808,2]
[359812090,1746358072912,-308.83647764,0.00019808,2]
[359812091,1746358072922,-189.11352236,0.00019808,2]
[359812092,1746358072934,-260.88647764,0.00019808,2]
[359812093,1746358072943,-189.11352236,0.00019808,2]
[359812094,1746358072956,-260.88647764,0.00019808,2]
[359812095,1746358072966,-189.11352236,0.00019808,2]
[359812096,1746358072977,-450.0,0.00019808,2]
[359812097,1746358072988,-450.0,0.00019808,2]
[359812098,1746358072998,-450.0,0.00019808,2]
[359812099,1746358073010,-450.0,0.00019808,2]
[359812100,1746358073021,-489.56,0.00019808,2]
[359812102,1746358073033,-450.0,0.00019808,2]
[359812103,1746358073045,-38926.26647764,0.00019808,2]
[359812104,1746358073054,-783.92,0.00019808,2]
[359812105,1746358073065,-450.0,0.00019808,2]
[359812106,1746358073075,-450.0,0.00019808,2]
[359812107,1746358073085,-3577.13,0.00019808,2]
[359812108,1746358073095,-530.28,0.00019808,2]
[359812109,1746358073104,-647.11,0.00019808,2]
[359812110,1746358073114,-450.0,0.00019808,2]
[359812111,1746358073125,-450.0,0.00019808,2]
[359812112,1746358073134,-2136.4,0.00019808,2]
[359812113,1746358073143,-450.0,0.00019808,2]
[359812114,1746358073152,-10062.95,0.00019808,2]
[359812115,1746358073161,-450.0,0.00019808,2]
[359812116,1746358073171,-450.0,0.00019808,2]
[359812117,1746358073180,-253.32562229,0.00019808,2]
[359812118,1746358073189,-450.0,0.00019808,2]
[359812119,1746358073198,-674.36,0.00019808,2]
[359812120,1746358073207,-450.0,0.00019808,2]
[359812121,1746358073216,-370.16790007,0.00019808,2]
[359812122,1746358073228,-79.83209993,0.00019808,2]
[359812123,1746358073237,-370.16790007,0.00019808,2]
[359812124,1746358073249,-79.83209993,0.00019808,2]
[359812125,1746358073258,-2360.78790007,0.00019808,2]
[359812126,1746358073270,-450.0,0.00019808,2]
[359812127,1746358073282,-450.0,0.00019808,2]
[359812128,1746358073292,-450.0,0.00019808,2]
[359812129,1746358073303,-450.0,0.00019808,2]
[359812130,1746358073314,-450.0,0.00019808,2]
[359812131,1746358073325,-450.0,0.00019808,2]
[359812132,1746358073337,-450.0,0.00019808,2]
[359812133,1746358073348,-450.0,0.00019808,2]
[359812134,1746358073359,-122.14209993,0.00019808,2]
[359812135,1746358073369,-327.85790007,0.00019808,2]
[359812136,1746358073380,-122.14209993,0.00019808,2]
[359812137,1746358073389,-378.20790007,0.00019808,2]
[359812138,1746358073400,-450.0,0.00019808,2]
[359812139,1746358073411,-393.28209993,0.00019808,2]
[359812140,1746358073420,-56.71790007,0.00019808,2]
[359812141,1746358073431,-450.0,0.00019808,2]
[359812142,1746358073442,-450.0,0.00019808,2]
[359812143,1746358073452,-547.22,0.00019808,2]
[359812144,1746358073464,-1114.96,0.00019808,2]
[359812145,1746358073475,-450.0,0.00019808,2]
[359812146,1746358073486,-151.22209993,0.00019808,2]
[359812147,1746358073495,-693.56790007,0.00019808,2]
[359812148,1746358073506,-37.64209993,0.00019808,2]
[359812149,1746358073516,-412.35790007,0.00019808,2]
[359812150,1746358073527,-37.64209993,0.00019808,2]
[359812151,1746358073536,-412.35790007,0.00019808,2]
[359812152,1746358073595,-37.64209993,0.00019808,2]
[359812153,1746358073604,-412.35790007,0.00019808,2]
[359812154,1746358073653,-37.64209993,0.00019808,2]
[359812155,1746358073662,-236.92,0.00019808,2]
[359812156,1746358073671,-25.43790007,0.00019808,2]
[359812157,1746358073682,-450.0,0.00019808,2]
[359812158,1746358073692,-548.61,0.00019808,2]
[359812159,1746358073703,-450.0,0.00019808,2]
[359812160,1746358073713,-450.0,0.00019808,2]
[359812161,1746358073724,-450.0,0.00019808,2]
[359812162,1746358073735,-450.0,0.00019808,2]
[359812163,1746358073746,-195.51373722,0.00019808,2]
[359812164,1746358073756,-450.0,0.00019808,2]
[359812165,1746358073768,-450.0,0.00019808,2]
[359812166,1746358073778,-450.0,0.00019808,2]
[359812167,1746358073789,-466.07,0.00019808,2]
[359812168,1746358073839,-450.0,0.00019808,2]
[359812169,1746358073850,-450.0,0.00019808,2]
[359812170,1746358073861,-450.0,0.00019808,2]
[359812171,1746358073872,-618.61,0.00019808,2]
[359812172,1746358073885,-450.0,0.00019808,2]
[359812173,1746358073896,-450.0,0.00019808,2]
[359812174,1746358073908,-450.0,0.00019808,2]
[359812175,1746358073918,-450.0,0.00019808,2]
[359812176,1746358073931,-157.17887803,0.00019808,2]
[359812177,1746358073942,-1743.37536783,0.00019808,2]
[359812178,1746358073958,-2836.83700462,0.00019808,2]
[359812179,1746358073970,-500.0,0.00019808,2]
[359812180,1746358073980,-628.01546955,0.00019808,2]
[359812181,1746358073991,-450.0,0.00019808,2]
[359812182,1746358074001,-859.36,0.00019808,2]
[359812183,1746358074012,-450.0,0.00019808,2]
[359812184,1746358074022,-380.44373895,0.00019808,2]
[359812185,1746358074033,-450.0,0.00019808,2]
[359812186,1746358074043,-450.0,0.00019808,2]
[359812187,1746358074054,-450.0,0.00019808,2]
[359812188,1746358074065,-411.79226179,0.00019808,2]
[359812189,1746358074076,-450.0,0.00019808,2]
[359812190,1746358074086,-450.0,0.00019808,2]
[359812191,1746358074097,-180.97,0.00019808,2]
[359812192,1746358074108,-194.87,0.00019808,2]
[359812193,1746358074119,-395.05,0.00019808,2]
[359812194,1746358074130,-450.0,0.00019808,2]
[359812195,1746358074141,-450.0,0.00019808,2]
[359812196,1746358074152,-196.04,0.00019808,2]
[359812197,1746358074162,-218.82229932,0.00019808,2]
[359812198,1746358074173,-450.0,0.00019808,2]
[359812199,1746358074185,-450.0,0.00019808,2]
[359812200,1746358074196,-394.53,0.00019808,2]
[359812201,1746358074207,-450.0,0.00019808,2]
[359812202,1746358074218,-450.0,0.00019808,2]
[359812203,1746358074229,-450.0,0.00019808,2]
[359812204,1746358074239,-450.0,0.00019808,2]
[359812205,1746358074309,-450.0,0.00019808,2]
[359812206,1746358074342,-472.93,0.00019808,2]
[359812207,1746358074352,-450.0,0.00019808,2]
[359812208,1746358074363,-450.0,0.00019808,2]
[359812209,1746358074374,-219.64,0.00019808,2]
[359812210,1746358074386,-450.0,0.00019808,2]
[359812211,1746358074400,-584.66,0.00019808,2]
[359812212,1746358074411,-450.0,0.00019808,2]
[359812213,1746358074422,-450.0,0.00019808,2]
[359812214,1746358074473,-450.0,0.00019808,2]
[359812215,1746358074484,-450.0,0.00019808,2]
[359812216,1746358074495,-450.0,0.00019808,2]
[359812217,1746358074506,-450.0,0.00019808,2]
[359812218,1746358074517,-450.0,0.00019808,2]
[359812219,1746358074528,-450.0,0.00019808,2]
[359812220,1746358074539,-450.0,0.00019808,2]
[359812221,1746358074550,-450.0,0.00019808,2]
[359812222,1746358074561,-220.63,0.00019808,2]
[359812223,1746358074572,-206.98,0.00019808,2]
[359812224,1746358074583,-450.0,0.00019808,2]
[359812225,1746358074593,-283.1,0.00019808,2]
[359812226,1746358074604,-450.0,0.00019808,2]
[359812227,1746358074616,-450.0,0.00019808,2]
[359812228,1746358074631,-450.0,0.00019808,2]
[359812229,1746358074642,-864.65,0.00019808,2]
[359812230,1746358074653,-174.44,0.00019808,2]
[359812231,1746358074672,-450.0,0.00019808,2]
[359812232,1746358074683,-450.0,0.00019808,2]
[359812233,1746358074694,-153.45,0.00019808,2]
[359812234,1746358074710,-450.0,0.00019808,2]
[359812235,1746358074721,-205.41,0.00019808,2]
[359812236,1746358074733,-450.0,0.00019808,2]
[359812237,1746358074744,-196.90448889,0.00019808,2]
[359812238,1746358074758,-171.57,0.00019808,2]
[359812239,1746358074769,-450.0,0.00019808,2]
[359812240,1746358074784,-610.76,0.00019808,2]
[359812241,1746358074800,-450.0,0.00019808,2]
[359812242,1746358074812,-450.0,0.00019808,2]
[359812243,1746358074823,-568.34,0.00019808,2]
[359812244,1746358074834,-209.89,0.00019808,2]
[359812245,1746358074845,-450.0,0.00019808,2]
[359812246,1746358074856,-222.14,0.00019808,2]
[359812247,1746358074868,-420.42183192,0.00019808,2]
[359812248,1746358074880,-232.07,0.00019808,2]
[359812249,1746358074896,-450.0,0.00019808,2]
[359812250,1746358074907,-450.0,0.00019808,2]
[359812251,1746358074922,-382.96,0.00019808,2]
[359812252,1746358074934,-404.53,0.00019808,2]
[359812253,1746358074945,-537.07,0.00019808,2]
[359812254,1746358074956,-166.9,0.00019808,2]
[359812255,1746358074972,-450.0,0.00019808,2]
[359812256,1746358074983,-266.06,0.00019808,2]
[359812257,1746358074998,-450.0,0.00019808,2]
[359812258,1746358075015,-450.0,0.00019808,2]
[359812259,1746358075026,-450.0,0.00019808,2]
[359812260,1746358075036,-450.0,0.00019808,2]
[359812261,1746358075051,-450.0,0.00019808,2]
[359812262,1746358075062,-450.0,0.00019808,2]
[359812263,1746358075073,-727.75,0.00019808,2]
[359812264,1746358075089,-450.0,0.00019808,2]
[359812265,1746358075100,-450.0,0.00019808,2]
[359812266,1746358075116,-357.8,0.00019808,2]
[359812267,1746358075127,-450.0,0.00019808,2]
[359812268,1746358075142,-450.0,0.00019808,2]
[359812269,1746358075153,-503.13,0.00019808,2]
[359812270,1746358075165,-450.0,0.00019808,2]
[359812271,1746358075176,-450.0,0.00019808,2]
[359812272,1746358075192,-450.0,0.00019808,2]
[359812273,1746358075204,-270.59,0.00019808,2]
[359812274,1746358075215,-450.0,0.00019808,2]
[359812275,1746358075230,-450.0,0.00019808,2]
[359812276,1746358075241,-2263.33,0.00019808,2]
[359812277,1746358075252,-581.97369639,0.00019808,2]
[359812278,1746358075264,-450.0,0.00019808,2]
[359812279,1746358075279,-450.0,0.00019808,2]
[359812280,1746358075290,-1348.23,0.00019808,2]
[359812281,1746358075301,-450.0,0.00019808,2]
[359812282,1746358075312,-450.0,0.00019808,2]
[359812283,1746358075322,-644.29,0.00019808,2]
[359812284,1746358075337,-450.0,0.00019808,2]
[359812285,1746358075348,-254.73,0.00019808,2]
[359812286,1746358075358,-450.0,0.00019808,2]
[359812287,1746358075369,-333.05332542,0.00019808,2]
[359812288,1746358075378,-116.94667458,0.00019808,2]
[359812289,1746358075389,-175.41,0.00019808,2]
[359812290,1746358075400,-342.10502588,0.00019808,2]
[359812291,1746358075483,-1806.15829954,0.00019808,2]
[359812292,1746358075493,-450.0,0.00019808,2]
[359812293,1746358075502,-450.0,0.00019808,2]
[359812294,1746358075512,-450.0,0.00019808,2]
[359812295,1746358075521,-450.0,0.00019808,2]
[359812296,1746358075530,-500.35,0.00019808,2]
[359812297,1746358075539,-450.0,0.00019808,2]
[359812298,1746358075548,-547.22,0.00019808,2]
[359812299,1746358075558,-1114.96,0.00019808,2]
[359812300,1746358075567,-844.79,0.00019808,2]
[359812301,1746358075576,-450.0,0.00019808,2]
[359812302,1746358075585,-450.0,0.00019808,2]
[359812303,1746358075594,-450.0,0.00019808,2]
[359812304,1746358075604,-618.61,0.00019808,2]
[359812305,1746358075613,-450.0,0.00019808,2]
[359812306,1746358075622,-1743.37536783,0.00019809,2]
[359812307,1746358075631,-2836.83700462,0.00019809,2]
[359812308,1746358075641,-267.42904511,0.00019813,2]
[359812309,1746358075650,-157.17887803,0.00019832,2]
[359812310,1746358075659,-500.0,0.00019834,2]
[359812311,1746358075668,-552.0,0.00019835,2]
[359812312,1746358075677,-450.0,0.00019835,2]
[359812313,1746358075686,-859.36,0.00019835,2]
[359812314,1746358075696,-450.0,0.00019835,2]
[359812315,1746358075705,-450.0,0.00019835,2]
[359812316,1746358075714,-267.42904511,0.00019835,2]
[359812317,1746358075722,-450.0,0.00019835,2]
[359812318,1746358075732,-459.2,0.00019835,2]
[359812319,1746358075741,-450.0,0.00019835,2]
[359812320,1746358075750,-450.0,0.00019835,2]
[359812321,1746358075759,-1327.933,0.00019835,2]
[359812322,1746358075768,-182.598,0.00019835,2]
[359812323,1746358075777,-450.0,0.00019835,2]
[359812324,1746358075787,-165.7642074,0.00019835,2]
[359812325,1746358075796,-472.93,0.00019835,2]
[359812326,1746358075805,-450.0,0.00019835,2]
[359812327,1746358075815,-450.0,0.00019835,2]
[359812328,1746358075825,-450.0,0.00019835,2]
[359812329,1746358075834,-584.66,0.00019835,2]
[359812330,1746358075843,-450.0,0.00019835,2]
[359812331,1746358075853,-450.0,0.00019835,2]
[359812332,1746358075862,-450.0,0.00019835,2]
[359812333,1746358075871,-450.0,0.00019835,2]
[359812334,1746358075884,-450.0,0.00019835,2]
[359812335,1746358075894,-450.0,0.00019835,2]
[359812336,1746358075903,-450.0,0.00019835,2]
[359812337,1746358075912,-571.70711238,0.00019835,2]
[359812338,1746358075922,-450.0,0.00019835,2]
[359812339,1746358075932,-450.0,0.00019835,2]
[359812340,1746358075941,-864.65,0.00019835,2]
[359812341,1746358075950,-450.0,0.00019835,2]
[359812342,1746358075961,-450.0,0.00019835,2]
[359812343,1746358075969,-450.0,0.00019835,2]
[359812344,1746358075979,-610.76,0.00019835,2]
[359812345,1746358075987,-450.0,0.00019835,2]
[359812346,1746358075997,-450.0,0.00019835,2]
[359812347,1746358076006,-450.0,0.00019835,2]
[359812348,1746358076015,-450.0,0.00019835,2]
[359812349,1746358076024,-537.07,0.00019835,2]
[359812350,1746358076032,-450.0,0.00019835,2]
[359812351,1746358076041,-450.0,0.00019835,2]
[359812352,1746358076051,-450.0,0.00019835,2]
[359812353,1746358076060,-294.53516313,0.00019835,2]
[359812354,1746358076072,-155.46483687,0.00019835,2]
[359812355,1746358076081,-450.0,0.00019835,2]
[359812356,1746358076090,-178.45516313,0.00019835,2]
[359812357,1746358076105,-271.54483687,0.00019835,2]
[359812358,1746358076114,-178.45516313,0.00019835,2]
[359812359,1746358076124,-271.54483687,0.00019835,2]
[359812360,1746358076133,-178.45516313,0.00019835,2]
[359812361,1746358076144,-549.29483687,0.00019835,2]
[359812362,1746358076153,-450.0,0.00019835,2]
[359812363,1746358076163,-450.0,0.00019835,2]
[359812364,1746358076171,-450.0,0.00019835,2]
[359812365,1746358076181,-450.0,0.00019835,2]
[359812366,1746358076190,-192.121361,0.00019835,2]
[359812367,1746358076198,-1035.71380213,0.00019835,2]
[359812368,1746358076220,-312.51619787,0.00019835,2]
[359812369,1746358076229,-217.76380213,0.00019835,2]
[359812370,1746358076246,-232.23619787,0.00019835,2]
[359812371,1746358076256,-414.87380213,0.00019835,2]
[359812372,1746358076267,-35.12619787,0.00019835,2]
[359812373,1746358076277,-414.87380213,0.00019835,2]
[359812374,1746358076288,-229.41619787,0.00019835,2]
[359812375,1746358076297,-220.58380213,0.00019835,2]
[359812376,1746358076308,-207.48,0.00019835,2]
[359812377,1746358076318,-21.93619787,0.00019835,2]
[359812378,1746358076328,-428.06380213,0.00019835,2]
[359812379,1746358076338,-21.93619787,0.00019835,2]
[359812380,1746358076348,-433.64380213,0.00019835,2]
[359812381,1746358076358,-876.79619787,0.00019835,2]
[359812382,1746358076368,-494.34,0.00019835,2]
[359812383,1746358076377,-450.0,0.00019835,2]
[359812384,1746358076387,-315.26380213,0.00019835,2]
[359812385,1746358076399,-134.73619787,0.00019835,2]
[359812386,1746358076408,-315.26380213,0.00019835,2]
[359812387,1746358076419,-450.0,0.00019835,2]
[359812388,1746358076430,-450.0,0.00019835,2]
[359812389,1746358076441,-1165.87619787,0.00019835,2]
[359812390,1746358076450,-450.0,0.00019835,2]
[359812391,1746358076459,-716.18,0.00019835,2]
[359812392,1746358076469,-450.0,0.00019835,2]
[359812393,1746358076478,-753.11,0.00019835,2]
[359812394,1746358076487,-973.65,0.00019835,2]
[359812395,1746358076497,-2480.86,0.00019835,2]
[359812396,1746358076506,-450.0,0.00019835,2]
[359812397,1746358076515,-1808.76,0.00019835,2]
[359812398,1746358076525,-450.0,0.00019835,2]
[359812399,1746358076534,-364.51380213,0.00019835,2]
[359812400,1746358076546,-416.21619787,0.00019835,2]
[359812401,1746358076555,-33.78380213,0.00019835,2]
[359812402,1746358076567,-120.11619787,0.00019835,2]
[359812403,1746358076577,-370.84380213,0.00019835,2]
[359812404,1746358076589,-79.15619787,0.00019835,2]
[359812405,1746358076598,-93.89380213,0.00019835,2]
[359812406,1746358076613,-346.96,0.00019835,2]
[359812407,1746358076624,-141.98619787,0.00019835,2]
[359812408,1746358076634,-166.22704527,0.00019835,2]
[359812409,1746358076643,-141.78675686,0.00019835,2]
[359812410,1746358076655,-450.0,0.00019835,2]
[359812411,1746358076666,-154.03,0.00019835,2]
[359812412,1746358076677,-179.84324314,0.00019835,2]
[359812413,1746358076687,-270.15675686,0.00019835,2]
[359812414,1746358076700,-179.84324314,0.00019835,2]
[359812415,1746358076710,-450.0,0.00019835,2]
[359812416,1746358076719,-44.51675686,0.00019835,2]
[359812417,1746358076731,-405.48324314,0.00019835,2]
[359812418,1746358076740,-44.51675686,0.00019835,2]
[359812419,1746358076751,-450.0,0.00019835,2]
[359812420,1746358076768,-165.68722518,0.00019726,2]
[359812421,1746358076780,-284.31277482,0.00019726,2]
[359812422,1746358076789,-165.68722518,0.00019835,2]
[359812423,1746358076800,-450.0,0.00019835,2]
[359812424,1746358076811,-450.0,0.00019835,2]
[359812425,1746358076827,-460.50601796,0.00019835,2]
[359812426,1746358076836,-450.0,0.00019835,2]
[359812427,1746358076845,-450.0,0.00019835,2]
[359812428,1746358076855,-450.0,0.00019835,2]
[359812429,1746358076865,-4272.42398204,0.00019835,2]
[359812430,1746358076918,-450.0,0.00019835,2]
[359812431,1746358076930,-255.01362017,0.00019835,2]
[359812432,1746358076942,-450.0,0.00019835,2]
[359812433,1746358076955,-450.0,0.00019835,2]
[359812434,1746358076967,-1221.49,0.00019835,2]
[359812435,1746358076978,-206.32,0.00019835,2]
[359812436,1746358076990,-522.62,0.00019835,2]
[359812437,1746358077001,-3220.12,0.00019835,2]
[359812438,1746358077012,-450.0,0.00019835,2]
[359812439,1746358077025,-450.0,0.00019835,2]
[359812440,1746358077036,-731.21,0.00019835,2]
[359812441,1746358077048,-450.0,0.00019835,2]
[359812442,1746358077061,-450.0,0.00019835,2]
[359812443,1746358077075,-450.0,0.00019835,2]
[359812444,1746358077087,-572.6,0.00019835,2]
[359812445,1746358077098,-450.0,0.00019835,2]
[359812446,1746358077110,-450.0,0.00019835,2]
[359812447,1746358077128,-450.0,0.00019726,2]